bitfinex-derivatives/quotes_BTCF0:USTF0_20250429
["timestamp","ask_amount","ask_price","bid_price","bid_amount"]
[1745885722395,0.004,94912.0,94911.0,0.2508039]
[1745885722597,0.2567582,94914.0,94913.0,0.1895999]
[1745885722897,0.06716,94914.0,94913.0,0.1895999]
[1745885723395,0.3608,94916.0,94915.0,0.1895959]
[1745885723984,0.5503939,94916.0,94915.0,0.2508959]
[1745885725391,0.5513939,94916.0,94915.0,0.2508959]
[1745885725591,0.5523939,94916.0,94915.0,0.2508959]
[1745885727089,0.5533939,94916.0,94915.0,0.2508959]
[1745885727691,0.3638,94916.0,94915.0,0.2508959]
[1745885728086,0.5533939,94916.0,94915.0,0.2508959]
[1745885728286,0.3638,94916.0,94915.0,0.2508959]
[1745885728496,0.003,94916.0,94915.0,0.2508959]
[1745885728796,0.003,94916.0,94915.0,0.3908959]
[1745885729196,0.003,94916.0,94915.0,0.5108959]
[1745885729896,0.002,94916.0,94915.0,0.5108959]
[1745885730097,0.08013142,94920.0,94919.0,0.1895879]
[1745885730292,0.08013142,94920.0,94919.0,0.3295879]
[1745885730895,0.08013142,94920.0,94919.0,0.3929879]
[1745885731296,0.06716,94921.0,94920.0,0.1895859]
[1745885731498,0.2567439,94921.0,94920.0,0.2529859]
[1745885732593,0.2577439,94921.0,94920.0,0.2529859]
[1745885733301,0.2587439,94921.0,94920.0,0.2529859]
[1745885733997,0.2597439,94921.0,94920.0,0.2529859]
[1745885734593,0.2607439,94921.0,94920.0,0.2529859]
[1745885734900,0.2617439,94921.0,94920.0,0.2529859]
[1745885735101,0.2597439,94921.0,94920.0,0.2529859]
[1745885735403,0.2617439,94921.0,94920.0,0.2529859]
[1745885737502,0.2617439,94921.0,94920.0,0.0634]
[1745885737692,0.1895939,94916.0,94915.0,0.2208947]
[1745885737897,0.1895959,94915.0,94914.0,0.26125705]
[1745885738192,0.7364959,94915.0,94914.0,0.26125705]
[1745885739904,0.7374959,94915.0,94914.0,0.26125705]
[1745885740605,0.1896019,94912.0,94911.0,0.0325]
[1745885740996,0.1896139,94906.0,94905.0,0.26125705]
[1745885741197,0.5504139,94906.0,94905.0,0.26125705]
[1745885742302,0.7333139,94906.0,94905.0,0.26125705]
[1745885742502,0.7333139,94906.0,94905.0,0.26225705]
[1745885743300,0.7333139,94906.0,94905.0,0.26325705]
[1745885744003,0.8014339,94906.0,94905.0,0.26225705]
[1745885744204,0.8014339,94906.0,94905.0,0.001]
[1745885744407,0.967188,94906.0,94883.0,0.26125705]
[1745885744607,0.7216,94890.0,94884.0,0.06181918]
[1745885744908,0.1896558,94885.0,94884.0,0.06181918]
[1745885745493,0.1896558,94885.0,94884.0,0.00791442]
[1745885745698,0.1896578,94884.0,94883.0,0.26125705]
[1745885746102,0.3741578,94884.0,94883.0,0.26125705]
[1745885747316,0.3741578,94884.0,94883.0,0.26325705]
[1745885747913,0.38494851,94884.0,94883.0,0.26325705]
[1745885749311,0.38494851,94884.0,94883.0,0.27098056]
[1745885749509,0.38494851,94884.0,94883.0,0.00972351]
[1745885752309,0.74574851,94884.0,94883.0,0.00972351]
[1745885761723,0.71304851,94884.0,94883.0,0.00972351]
[1745885763828,0.71304851,94884.0,94883.0,0.00772351]
[1745885764020,0.0474158,94882.0,94879.0,0.0626]
[1745885764214,0.4808,94884.0,94881.0,0.0474155]
[1745885764417,1e-08,94884.0,94883.0,0.5504598]
[1745885764720,1e-08,94884.0,94883.0,0.7436598]
[1745885764920,1e-08,94884.0,94883.0,1.6588118]
[1745885765125,0.08013142,94896.0,94895.0,0.1896359]
[1745885765325,0.08013142,94896.0,94895.0,0.3296359]
[1745885766012,0.08013142,94896.0,94895.0,0.3933359]
[1745885766219,0.08013142,94896.0,94895.0,0.5133359]
[1745885766615,0.08013142,94896.0,94895.0,0.3733359]
[1745885766813,0.08013142,94896.0,94895.0,0.4933359]
[1745885767024,0.26976532,94896.0,94895.0,0.75459295]
[1745885767526,0.27176532,94896.0,94895.0,0.75459295]
[1745885768227,0.27476532,94896.0,94895.0,0.75459295]
[1745885768622,0.1946339,94896.0,94895.0,0.75459295]
[1745885770423,0.1946339,94896.0,94895.0,0.63459295]
[1745885771218,0.1946339,94896.0,94895.0,0.51459295]
[1745885776030,0.005,94896.0,94895.0,0.51459295]
[1745885776224,0.1946339,94896.0,94895.0,0.64459295]
[1745885777227,0.005,94896.0,94895.0,0.64459295]
[1745885777434,0.005,94896.0,94895.0,1.00539295]
[1745885778132,0.005,94896.0,94895.0,1.12539295]
[1745885784227,0.1946339,94896.0,94895.0,0.76459295]
[1745885785335,0.1946339,94896.0,94895.0,0.64459295]
[1745885786630,0.005,94896.0,94895.0,0.64459295]
[1745885787141,0.1946339,94896.0,94895.0,0.64459295]
[1745885787333,0.2278339,94896.0,94895.0,0.64459295]
[1745885788426,0.0382,94896.0,94895.0,0.64459295]
[1745885788738,0.005,94896.0,94895.0,0.64459295]
[1745885788941,0.1946339,94896.0,94895.0,0.64459295]
[1745885794135,0.1946339,94896.0,94895.0,0.76459295]
[1745885794743,0.2265339,94896.0,94895.0,0.76459295]
[1745885795132,0.2265339,94896.0,94895.0,0.64459295]
[1745885801849,0.2265339,94896.0,94895.0,0.39125705]
[1745885802043,0.2265339,94896.0,94895.0,0.26125705]
[1745885802345,0.1896618,94883.0,94882.0,0.2370724]
[1745885802843,0.2524618,94883.0,94882.0,0.2987724]
[1745885803042,0.2826618,94883.0,94882.0,0.2987724]
[1745885803436,0.2826618,94883.0,94882.0,0.3007724]
[1745885804236,0.2826618,94883.0,94882.0,0.0323]
[1745885804537,0.2826618,94883.0,94882.0,0.2219618]
[1745885807249,0.0628,94883.0,94882.0,0.2219618]
[1745885807437,0.0311,94883.0,94882.0,0.3619618]
[1745885808054,0.0311,94883.0,94882.0,0.3933618]
[1745885808241,0.0311,94883.0,94882.0,0.77461885]
[1745885809347,0.2207598,94883.0,94882.0,0.77461885]
[1745885809539,0.0311,94883.0,94882.0,0.77461885]
[1745885811046,0.2207598,94883.0,94882.0,0.77461885]
[1745885811256,0.2207598,94883.0,94882.0,0.65461885]
[1745885815946,0.0311,94883.0,94882.0,0.46495705]
[1745885816149,0.0311,94883.0,94882.0,0.65461885]
[1745885818053,0.2207598,94883.0,94882.0,0.65461885]
[1745885821755,0.2207598,94883.0,94882.0,0.46495705]
[1745885822150,0.3407598,94883.0,94882.0,0.46495705]
[1745885823162,0.2207598,94883.0,94882.0,0.46495705]
[1745885823350,0.2207598,94883.0,94882.0,0.32495705]
[1745885823550,0.2207598,94883.0,94882.0,0.51461885]
[1745885824557,0.2207598,94883.0,94882.0,0.32495705]
[1745885825761,0.2207598,94883.0,94882.0,0.51461885]
[1745885826060,0.3407598,94883.0,94882.0,0.51461885]
[1745885826255,0.3407598,94883.0,94882.0,0.32495705]
[1745885826758,0.3407598,94883.0,94882.0,0.51461885]
[1745885827257,0.2207598,94883.0,94882.0,0.51461885]
[1745885828353,0.2207598,94883.0,94882.0,0.29355705]
[1745885829164,0.3407598,94883.0,94882.0,0.29355705]
[1745885830755,0.3437598,94883.0,94882.0,0.29255705]
[1745885831662,0.1896918,94867.0,94866.0,0.26125705]
[1745885831851,0.5504918,94867.0,94866.0,0.48495705]
[1745885832051,0.5504918,94867.0,94866.0,0.4928568]
[1745885832254,0.6704918,94867.0,94866.0,0.4608568]
[1745885833355,0.6704918,94867.0,94866.0,0.4618568]
[1745885834357,0.6704918,94867.0,94866.0,0.4930568]
[1745885835061,0.68110185,94867.0,94866.0,0.3330568]
[1745885836067,0.6704918,94867.0,94866.0,0.3330568]
[1745885836267,0.6704918,94867.0,94866.0,0.4730568]
[1745885836468,0.3096918,94867.0,94866.0,0.4730568]
[1745885837268,0.1896918,94867.0,94866.0,0.4730568]
[1745885837467,0.0800863,94870.0,94869.0,0.1896878]
[1745885837668,0.0800863,94870.0,94869.0,0.3296878]
[1745885837863,0.2697721,94870.0,94869.0,0.3296878]
[1745885838061,0.0800863,94870.0,94869.0,0.3296878]
[1745885838765,0.2707721,94870.0,94869.0,0.3296878]
[1745885838971,0.2717721,94870.0,94869.0,0.3296878]
[1745885840668,0.1916858,94870.0,94869.0,0.3296878]
[1745885841177,0.1916858,94870.0,94869.0,0.14]
[1745885842872,0.1916858,94870.0,94869.0,0.3296878]
[1745885843377,0.1916858,94870.0,94869.0,0.59094485]
[1745885845276,0.002,94870.0,94869.0,0.59094485]
[1745885849272,0.002,94870.0,94869.0,0.65334485]
[1745885861175,0.002,94870.0,94869.0,0.77334485]
[1745885862285,0.002,94870.0,94869.0,0.65334485]
[1745885865284,0.1916858,94870.0,94869.0,0.65334485]
[1745885865482,0.002,94870.0,94869.0,0.65334485]
[1745885867278,0.0322,94870.0,94869.0,0.65334485]
[1745885886288,0.0322,94870.0,94869.0,1.01414485]
[1745885898583,0.002,94870.0,94869.0,1.01414485]
[1745885899187,0.002,94870.0,94869.0,1.14494455]
[1745885899384,0.0308,94874.0,94873.0,0.1896798]
[1745885899581,0.0308,94874.0,94873.0,0.3296798]
[1745885900282,0.0308,94874.0,94873.0,0.3933798]
[1745885900585,0.0318,94874.0,94873.0,0.3933798]
[1745885900982,0.0328,94874.0,94873.0,0.3933798]
[1745885901983,0.0328,94874.0,94873.0,0.65463685]
[1745885903294,0.15421752,94888.0,94874.0,0.0474194]
[1745885903295,0.10680482,94888.0,94874.0,0.0474194]
[1745885903480,0.0315,94887.0,94886.0,0.1896538]
[1745885903790,0.0315,94887.0,94886.0,0.6904538]
[1745885904282,0.0315,94887.0,94886.0,0.8104538]
[1745885904478,0.0355,94887.0,94886.0,0.8104538]
[1745885904687,0.0395,94887.0,94886.0,0.8726538]
[1745885906584,0.0355,94887.0,94886.0,0.8736538]
[1745885907284,0.0315,94887.0,94886.0,0.8736538]
[1745885907879,0.0315,94887.0,94886.0,1.13491085]
[1745885911791,0.1896288,94899.0,94886.0,0.99267005]
[1745885911996,0.0328,94893.0,94892.0,0.1896419]
[1745885912186,0.0328,94893.0,94892.0,0.3496419]
[1745885912390,0.0015,94905.0,94904.0,0.1896179]
[1745885912697,0.0015,94905.0,94904.0,0.59087495]
[1745885913293,0.0015,94905.0,94904.0,0.65437495]
[1745885913695,0.0055,94905.0,94904.0,0.65437495]
[1745885914091,0.10680482,94908.0,94907.0,0.1896119]
[1745885914290,0.10680482,94908.0,94907.0,0.3196119]
[1745885914898,0.0312,94911.0,94910.0,0.1896059]
[1745885915098,0.0312,94911.0,94910.0,0.6804059]
[1745885915887,0.0326,94913.0,94912.0,0.1896019]
[1745885916088,0.10680482,94915.0,94914.0,0.1895979]
[1745885916288,0.10680482,94915.0,94914.0,0.3295979]
[1745885917998,0.11280482,94915.0,94914.0,0.3295979]
[1745885918699,0.11280482,94915.0,94914.0,0.33759016]
[1745885919092,0.11280482,94915.0,94914.0,0.45759016]
[1745885919414,0.011,94915.0,94914.0,0.45759016]
[1745885919588,0.011,94915.0,94914.0,0.71884721]
[1745885920090,0.0642,94920.0,94919.0,0.1895879]
[1745885920294,0.0642,94920.0,94919.0,0.3295879]
[1745885920793,0.0642,94920.0,94919.0,0.3930879]
[1745885921697,0.0662,94920.0,94919.0,0.3930879]
[1745885922697,0.0672,94920.0,94919.0,0.3930879]
[1745885925505,0.0672,94920.0,94919.0,0.65434495]
[1745885929802,0.003,94920.0,94919.0,0.65434495]
[1745885931106,0.003,94920.0,94919.0,0.77434495]
[1745885938206,0.003,94920.0,94919.0,1.13514495]
[1745885942214,0.003,94920.0,94919.0,1.01514495]
[1745885943113,0.003,94920.0,94919.0,1.13514495]
[1745885945214,0.001,94926.0,94925.0,0.1895759]
[1745885945414,0.001,94926.0,94925.0,0.59083295]
[1745885946608,0.002,94926.0,94925.0,0.62113295]
[1745885947008,0.004,94926.0,94925.0,0.62113295]
[1745885950013,0.0368,94926.0,94925.0,0.62113295]
[1745885950207,0.2263739,94926.0,94925.0,0.62113295]
[1745885951111,0.0368,94926.0,94925.0,0.62113295]
[1745885952213,0.2263739,94926.0,94925.0,0.48113295]
[1745885952413,0.2263739,94926.0,94925.0,0.26125705]
[1745885952414,0.5871739,94926.0,94925.0,0.26125705]
[1745885953212,0.7071739,94926.0,94925.0,0.26125705]
[1745885953506,0.7071739,94926.0,94925.0,0.45083295]
[1745885954911,0.7071739,94926.0,94925.0,0.1895759]
[1745885955710,0.7373739,94926.0,94925.0,0.1895759]
[1745885956509,0.2369767,94924.0,94923.0,0.1895788]
[1745885957221,0.3569767,94924.0,94923.0,0.1895788]
[1745885957412,0.3095819,94924.0,94923.0,0.1895788]
[1745885957612,0.3125819,94924.0,94923.0,0.1895788]
[1745885959427,0.1895919,94917.0,94916.0,0.0315]
[1745885959726,0.2369902,94917.0,94916.0,0.1895939]
[1745885960323,0.3569902,94917.0,94916.0,0.1895939]
[1745885960524,0.4192902,94917.0,94916.0,0.1895939]
[1745885960829,0.42991085,94917.0,94916.0,0.1905939]
[1745885962627,0.4192902,94917.0,94916.0,0.1905939]
[1745885963425,0.4202902,94917.0,94916.0,0.1905939]
[1745885963833,0.4202902,94917.0,94916.0,0.1895939]
[1745885964021,0.4202902,94917.0,94916.0,0.2202939]
[1745885964326,0.3002902,94917.0,94916.0,0.2202939]
[1745885968823,0.0633,94917.0,94916.0,0.2202939]
[1745885969026,0.0633,94917.0,94916.0,0.2302939]
[1745885971525,0.0325,94917.0,94916.0,0.2302939]
[1745885980329,0.2220919,94917.0,94916.0,0.2302939]
[1745885983139,0.0474014,94911.0,94903.0,0.26125705]
[1745885983331,0.5504119,94907.0,94903.0,0.29275705]
[1745885983730,0.5504119,94907.0,94903.0,0.34016175]
[1745885983935,0.5504119,94907.0,94906.0,0.19119436]
[1745885984137,0.7321119,94907.0,94906.0,0.19119436]
[1745885984333,0.7321119,94907.0,94906.0,0.19319436]
[1745885984632,0.7321119,94907.0,94906.0,0.19519436]
[1745885985022,0.7331119,94907.0,94906.0,0.19319436]
[1745885986530,0.7341119,94907.0,94906.0,0.19119436]
[1745885988042,0.7351119,94907.0,94906.0,0.19119436]
[1745885991942,0.6734119,94907.0,94906.0,0.19119436]
[1745885992141,0.5534119,94907.0,94906.0,0.19119436]
[1745885992644,0.5534119,94907.0,94906.0,0.25369436]
[1745886004358,0.5534119,94907.0,94906.0,0.2521139]
[1745886008562,0.003,94907.0,94906.0,0.3921139]
[1745886009262,0.003,94907.0,94906.0,0.5121139]
[1745886010468,0.002,94907.0,94906.0,0.77337095]
[1745886010772,0.002,94907.0,94906.0,0.77537095]
[1745886011475,0.1896021,94915.0,94914.0,0.1895979]
[1745886011666,0.0473986,94916.0,94914.0,0.1895979]
[1745886011667,0.29625566,94917.0,94916.0,0.1895939]
[1745886011863,0.29625436,94917.0,94916.0,0.1895939]
[1745886012769,0.1895919,94917.0,94916.0,0.1895939]
[1745886013166,0.1905919,94917.0,94916.0,0.1895939]
[1745886013666,0.001,94917.0,94916.0,0.1895939]
[1745886014671,0.001,94917.0,94916.0,0.3295939]
[1745886015268,0.10666246,94928.0,94925.0,0.1895759]
[1745886015269,0.11735442,94928.0,94925.0,0.1895759]
[1745886015475,0.001,94926.0,94925.0,0.1895759]
[1745886016077,0.001,94926.0,94925.0,0.4095759]
[1745886016374,0.004,94926.0,94925.0,0.4095759]
[1745886017581,0.006,94926.0,94925.0,0.4095759]
[1745886017766,0.005,94926.0,94925.0,0.4095759]
[1745886017965,0.004,94926.0,94925.0,0.4095759]
[1745886019372,0.004,94926.0,94925.0,0.67083295]
[1745886022570,0.004,94926.0,94925.0,0.70163295]
[1745886030485,0.004,94926.0,94925.0,0.73233295]
[1745886044179,0.004,94926.0,94925.0,0.61233295]
[1745886058910,0.0015,94940.0,94930.0,0.0473911]
[1745886059109,0.03,94939.0,94937.0,0.189552]
[1745886059307,0.03,94939.0,94937.0,0.329552]
[1745886060110,0.03,94939.0,94937.0,0.393952]
[1745886060309,0.10863293,94938.0,94937.0,0.393952]
[1745886060902,0.10963293,94938.0,94937.0,0.393952]
[1745886061613,0.11163293,94938.0,94937.0,0.393952]
[1745886062302,0.10963293,94938.0,94937.0,0.393952]
[1745886062504,0.006,94938.0,94937.0,0.393952]
[1745886063311,0.006,94938.0,94937.0,0.65520905]
[1745886063913,0.006,94938.0,94937.0,0.51520905]
[1745886064108,0.006,94938.0,94937.0,0.48350905]
[1745886064412,0.0377,94938.0,94937.0,0.48350905]
[1745886066213,0.006,94938.0,94937.0,0.48350905]
[1745886066411,0.006,94938.0,94937.0,0.45080905]
[1745886066613,0.0391,94938.0,94937.0,0.45080905]
[1745886066813,0.22865,94938.0,94937.0,0.45080905]
[1745886067113,0.3999,94938.0,94922.0,0.65525705]
[1745886067300,0.25489565,94932.0,94931.0,0.1895604]
[1745886067501,0.1895677,94932.0,94931.0,0.1895604]
[1745886068110,0.1828,94932.0,94931.0,0.1895604]
[1745886068808,0.1506,94932.0,94931.0,0.3095604]
[1745886069006,0.1536,94932.0,94931.0,0.3752604]
[1745886069211,0.0336,94932.0,94931.0,0.3752604]
[1745886069709,0.0356,94932.0,94931.0,0.3752604]
[1745886077312,0.005,94932.0,94931.0,0.3752604]
[1745886078006,0.005,94932.0,94931.0,0.63651745]
[1745886078208,0.005,94932.0,94931.0,0.75651745]
[1745886080326,0.005,94932.0,94931.0,1.11731745]
[1745886080825,0.005,94932.0,94931.0,0.75651745]
[1745886081025,0.005,94932.0,94931.0,1.11731745]
[1745886081325,0.005,94932.0,94931.0,0.99731745]
[1745886087612,0.0015,94940.0,94931.0,0.80775705]
[1745886087813,0.0015,94940.0,94939.0,0.550348]
[1745886088011,0.0015,94940.0,94939.0,0.700348]
[1745886088232,0.3608,94949.0,94939.0,0.700348]
[1745886088233,0.0308,94947.0,94946.0,0.189534]
[1745886088609,0.0312,94948.0,94947.0,0.189532]
[1745886088810,0.0312,94948.0,94947.0,0.221432]
[1745886089018,0.0312,94948.0,94947.0,0.251532]
[1745886089813,0.0362,94948.0,94947.0,0.251532]
[1745886090017,0.0412,94948.0,94947.0,0.251532]
[1745886092132,0.01,94948.0,94947.0,0.251532]
[1745886092323,0.10663293,94954.0,94949.0,0.0473816]
[1745886092517,0.10663293,94954.0,94953.0,0.18952]
[1745886092719,0.10663293,94954.0,94953.0,0.32952]
[1745886093224,0.10663293,94954.0,94953.0,0.39372]
[1745886093427,0.10863293,94954.0,94953.0,0.39372]
[1745886093820,0.002,94954.0,94953.0,0.39372]
[1745886094125,0.0309,94955.0,94954.0,0.189518]
[1745886094326,0.0309,94955.0,94954.0,0.319518]
[1745886094520,0.0309,94955.0,94954.0,0.383718]
[1745886094720,0.001,94956.0,94955.0,0.189516]
[1745886095030,0.001,94956.0,94955.0,0.319516]
[1745886095227,0.001,94956.0,94955.0,0.383716]
[1745886098931,0.001,94956.0,94955.0,0.744516]
[1745886100026,0.0308,94963.0,94962.0,0.1895021]
[1745886100337,0.03,94970.0,94969.0,0.1894881]
[1745886100517,0.0614,94970.0,94969.0,0.1894881]
[1745886101520,0.0928,94970.0,94969.0,0.2202881]
[1745886102515,0.0968,94970.0,94969.0,0.2202881]
[1745886103326,0.2168,94970.0,94969.0,0.2202881]
[1745886105227,0.2168,94970.0,94969.0,0.22817257]
[1745886108127,0.2158,94970.0,94969.0,0.22817257]
[1745886108921,0.1858,94970.0,94969.0,0.22817257]
[1745886113836,0.3752861,94970.0,94969.0,0.22817257]
[1745886114136,0.4074861,94970.0,94969.0,0.22817257]
[1745886123943,0.3752861,94970.0,94969.0,0.22817257]
[1745886125750,0.1858,94970.0,94969.0,0.22817257]
[1745886126846,0.3752861,94970.0,94969.0,0.00788447]
[1745886127036,0.1894921,94967.0,94966.0,0.26125705]
[1745886127549,0.2947921,94967.0,94966.0,0.26125705]
[1745886127835,0.1895001,94963.0,94962.0,0.1895015]
[1745886128036,0.5503001,94963.0,94962.0,0.1895015]
[1745886128241,0.1895021,94962.0,94961.0,0.2224041]
[1745886128540,0.2869021,94962.0,94961.0,0.2301088]
[1745886129131,0.4069021,94962.0,94961.0,0.2301088]
[1745886129738,0.7677021,94962.0,94961.0,0.2301088]
[1745886129941,0.7687021,94962.0,94961.0,0.2301088]
[1745886130837,0.8740061,94962.0,94961.0,0.0077047]
[1745886131033,0.18952,94953.0,94952.0,0.0331]
[1745886131230,0.55032,94953.0,94952.0,0.01]
[1745886131835,0.55032,94953.0,94952.0,0.00804192]
[1745886132150,0.18953,94948.0,94947.0,0.222632]
[1745886132536,0.18953,94948.0,94947.0,0.254032]
[1745886132932,0.22253,94948.0,94947.0,0.254032]
[1745886133138,0.34253,94948.0,94947.0,0.254032]
[1745886134834,0.34253,94948.0,94947.0,0.256032]
[1745886136143,0.22253,94948.0,94947.0,0.256032]
[1745886136746,0.23308163,94948.0,94947.0,0.256032]
[1745886136933,0.23308163,94948.0,94947.0,0.26400023]
[1745886137134,0.35308163,94948.0,94947.0,0.26400023]
[1745886139735,0.35308163,94948.0,94947.0,0.07446823]
[1745886139947,0.35308163,94948.0,94947.0,0.04306823]
[1745886140149,0.189542,94942.0,94941.0,0.26125705]
[1745886140340,0.18955,94938.0,94937.0,0.0641]
[1745886140539,0.18955,94938.0,94922.0,0.00158024]
[1745886140540,0.1895739,94926.0,94922.0,0.00158024]
[1745886140736,0.5503739,94926.0,94925.0,0.00908649]
[1745886140937,0.6557179,94926.0,94925.0,0.00908649]
[1745886141147,0.1895799,94923.0,94922.0,0.00158024]
[1745886141643,0.30528114,94923.0,94922.0,0.00158024]
[1745886142037,0.42528114,94923.0,94922.0,0.00158024]
[1745886142237,0.45728114,94923.0,94922.0,0.00158024]
[1745886142445,0.45728114,94923.0,94922.0,0.00258024]
[1745886142843,0.81808114,94923.0,94922.0,0.00258024]
[1745886145353,0.45728114,94923.0,94922.0,0.00258024]
[1745886145548,0.81808114,94923.0,94922.0,0.00258024]
[1745886148455,0.74773314,94923.0,94922.0,0.00258024]
[1745886148756,0.74773314,94923.0,94922.0,0.19216214]
[1745886148949,0.68073314,94923.0,94922.0,0.19216214]
[1745886149149,0.62773314,94923.0,94922.0,0.19216214]
[1745886150345,0.4278,94923.0,94922.0,0.19216214]
[1745886151353,0.6173799,94923.0,94922.0,0.19216214]
[1745886151948,0.6173799,94923.0,94922.0,0.19316214]
[1745886152151,0.7373799,94923.0,94922.0,0.19316214]
[1745886153047,0.6173799,94923.0,94922.0,0.19316214]
[1745886156346,0.4278,94923.0,94922.0,0.19316214]
[1745886157758,0.6173799,94923.0,94922.0,0.19316214]
[1745886161253,0.5503799,94923.0,94922.0,0.19316214]
[1745886161454,0.6173799,94923.0,94922.0,0.19316214]
[1745886164762,0.2565799,94923.0,94922.0,0.19316214]
[1745886164955,0.6173799,94923.0,94922.0,0.19316214]
[1745886166257,0.6173799,94923.0,94922.0,0.00358024]
[1745886166455,0.6494799,94923.0,94922.0,0.00358024]
[1745886167855,0.6799799,94923.0,94922.0,0.00358024]
[1745886168254,0.7999799,94923.0,94922.0,0.00358024]
[1745886170949,0.9053279,94923.0,94922.0,0.00358024]
[1745886173467,0.7373799,94923.0,94922.0,0.00358024]
[1745886173764,0.6703799,94923.0,94922.0,0.00358024]
[1745886173969,0.7373799,94923.0,94922.0,0.00358024]
[1745886174166,0.6173799,94923.0,94922.0,0.00358024]
[1745886174469,0.78227245,94923.0,94922.0,0.00358024]
[1745886177157,0.56099255,94923.0,94922.0,0.19316214]
[1745886177357,0.75057245,94923.0,94922.0,0.00358024]
[1745886178164,0.72418137,94923.0,94922.0,0.00358024]
[1745886181674,0.10680147,94923.0,94922.0,0.67396214]
[1745886181872,0.13319255,94932.0,94931.0,0.1895639]
[1745886182072,0.13319255,94932.0,94931.0,0.7003639]
[1745886182278,0.0794809,94952.0,94931.0,0.7003639]
[1745886182279,0.13319255,94933.0,94932.0,0.189562]
[1745886182570,0.3608,94949.0,94934.0,0.0473892]
[1745886182776,0.3608,94949.0,94948.0,0.18953]
[1745886182962,0.3608,94960.0,94955.0,0.189516]
[1745886183164,0.1969085,94964.0,94955.0,0.680316]
[1745886183564,0.18646957,94964.0,94955.0,0.746016]
[1745886184173,0.18646957,94964.0,94955.0,0.867016]
[1745886184472,0.18646957,94964.0,94963.0,0.1895001]
[1745886184673,0.18646957,94964.0,94963.0,0.3095001]
[1745886185276,0.18646957,94964.0,94963.0,0.4915001]
[1745886185876,0.18946957,94964.0,94963.0,0.49925888]
[1745886186178,0.003,94964.0,94963.0,0.37925888]
[1745886200285,0.1924981,94964.0,94963.0,0.37925888]
[1745886200482,0.003,94964.0,94963.0,0.37925888]
[1745886201489,0.003,94964.0,94963.0,0.18975878]
[1745886201490,0.1924981,94964.0,94963.0,0.18975878]
[1745886202390,0.3124981,94964.0,94963.0,0.18975878]
[1745886203191,0.3454981,94964.0,94963.0,0.18975878]
[1745886205890,0.3454981,94964.0,94963.0,0.37925888]
[1745886207387,0.123,94964.0,94963.0,0.37925888]
[1745886208198,0.003,94964.0,94963.0,0.49925888]
[1745886208486,0.1924981,94964.0,94963.0,0.30975878]
[1745886208688,0.003,94964.0,94963.0,0.49925888]
[1745886209190,0.003,94964.0,94963.0,0.37925888]
[1745886209378,0.1924981,94964.0,94963.0,0.37925888]
[1745886210579,0.003,94964.0,94963.0,0.37925888]
[1745886211390,0.1894875,94971.0,94970.0,0.1894816]
[1745886212180,0.1894921,94969.0,94968.0,0.1894897]
[1745886212383,0.1894901,94968.0,94967.0,0.0638]
[1745886212584,0.2219901,94968.0,94967.0,0.0638]
[1745886213191,0.3419901,94968.0,94967.0,0.0638]
[1745886213890,0.3734901,94968.0,94967.0,0.0638]
[1745886214188,0.3754901,94968.0,94967.0,0.0308]
[1745886214392,0.3754901,94968.0,94963.0,0.00775878]
[1745886214393,0.1894981,94964.0,94963.0,0.00775878]
[1745886214590,0.5502981,94964.0,94963.0,0.01]
[1745886214788,0.5502981,94964.0,94963.0,0.01770693]
[1745886215183,0.3737981,94964.0,94963.0,0.01770693]
[1745886215385,0.3411981,94964.0,94963.0,0.01770693]
[1745886215589,0.12,94964.0,94963.0,0.20720703]
[1745886216183,0.0799866,94971.0,94970.0,0.1894861]
[1745886216494,0.0799866,94971.0,94970.0,0.6902861]
[1745886217192,0.0799866,94971.0,94970.0,0.7540861]
[1745886218691,0.0819866,94971.0,94970.0,0.7540861]
[1745886219489,0.002,94971.0,94970.0,0.7540861]
[1745886223087,0.002,94971.0,94970.0,1.13534315]
[1745886224098,0.001,94986.0,94985.0,0.1894562]
[1745886224299,0.001,94986.0,94985.0,0.3394562]
[1745886224489,0.1,95000.0,94999.0,0.1894283]
[1745886224794,0.1,95000.0,94999.0,0.3294283]
[1745886225400,0.1,95000.0,94999.0,0.3602283]
[1745886226398,0.101,95000.0,94999.0,0.3602283]
[1745886227393,0.101,95000.0,94999.0,0.3924283]
[1745886232099,0.101,95000.0,94999.0,0.5124283]
[1745886232299,0.1,95000.0,94999.0,0.5124283]
[1745886232505,0.1,95000.0,94999.0,0.5134283]
[1745886233208,0.1,95000.0,94999.0,0.3934283]
[1745886234007,0.1,95000.0,94999.0,0.3924283]
[1745886234211,0.1,95000.0,94999.0,0.3934283]
[1745886235317,0.0015,95010.0,95009.0,0.1894083]
[1745886235517,0.0015,95010.0,95009.0,0.3094083]
[1745886236215,0.1215,95010.0,95009.0,0.4030083]
[1745886237012,0.001,95016.0,95009.0,0.4030083]
[1745886237013,0.001,95016.0,95009.0,0.66426535]
[1745886237205,0.0309,95025.0,95024.0,0.1893784]
[1745886237409,0.0309,95025.0,95024.0,0.6801784]
[1745886237803,0.0309,95025.0,95024.0,0.7419784]
[1745886238810,0.2220632,95032.0,95031.0,0.1893645]
[1745886239504,0.2220632,95032.0,95031.0,0.19738771]
[1745886239705,0.0327,95032.0,95031.0,0.19738771]
[1745886240114,0.1527,95032.0,95031.0,0.22848771]
[1745886240418,0.1547,95032.0,95031.0,0.22848771]
[1745886242013,0.16548335,95032.0,95031.0,0.22848771]
[1745886245019,0.35484585,95032.0,95031.0,0.22848771]
[1745886248914,0.16548335,95032.0,95031.0,0.22848771]
[1745886250112,0.185,95032.0,95031.0,0.22848771]
[1745886250321,0.1523,95032.0,95031.0,0.22848771]
[1745886250527,0.1523,95032.0,95031.0,0.33848771]
[1745886251521,0.122,95032.0,95031.0,0.33848771]
[1745886252924,0.12,95032.0,95031.0,0.33848771]
[1745886253114,0.122,95032.0,95031.0,0.33848771]
[1745886256726,0.122,95032.0,95031.0,0.22848771]
[1745886257829,0.12,95032.0,95031.0,0.23048771]
[1745886258222,0.12,95032.0,95031.0,0.34048771]
[1745886259229,0.12,95032.0,95031.0,0.37128771]
[1745886259432,0.12,95032.0,95031.0,0.37028771]
[1745886259635,0.12,95032.0,95031.0,0.37128771]
[1745886260635,0.12,95032.0,95031.0,0.34048771]
[1745886263738,0.0015,95045.0,95044.0,0.1893386]
[1745886264036,0.2210373,95045.0,95037.0,0.0937]
[1745886264337,0.2210373,95045.0,95044.0,0.1893386]
[1745886265135,0.2210373,95045.0,95044.0,0.2512386]
[1745886265527,0.2230373,95045.0,95044.0,0.2512386]
[1745886266127,0.0337,95045.0,95044.0,0.2512386]